[Event "World Junior U20 Open 2018"]
[Site "Gebze"]
[Date "2018.09.06"]
[Round "2.79"]
[White "Agdelen, Huseyin Can"]
[Black "Helander, Benjamin"]
[Result "1-0"]
[ECO "C05"]
[WhiteElo "2280"]
[BlackElo "1994"]
[Annotator "NA"]
[PlyCount "55"]
[EventDate "2018.09.05"]
[EventType "swiss"]
[EventCountry "TUR"]
[SourceTitle "playchess.com"]
[Source "ChessBase"]
[SourceQuality "1"]
[TimeControl "40/5400+30:1800+30"]

1. e4 {[%emt 0:00:30]} e6 {[%emt 0:00:30]} 2. d4 {[%emt 0:00:30]} d5 {[%emt 0:00:00]} 3. Nd2 {[%emt 0:00:30]} Nf6 {[%emt 0:00:00]} 4. e5 {[%emt 0:00:00]} Nfd7 {[%emt 0:00:30]} 5. c3 {[%emt 0:00:00]} c5 {[%emt 0:00:30]} 6. f4 {[%emt 0:00:30]} Nc6 {[%emt 0:01:30]} 7. Ndf3 {[%emt 0:00:30]} cxd4 {[%emt 0:02:30]} 8. cxd4 {[%emt 0:00:00]} Bb4+ {[%emt 0:02:30] LiveBook: 39 Games} 9. Kf2 {[%emt 0:00:00]} O-O {[%emt 0:00:30]} 10. g3 {[%emt 0:01:30] C05: French Tarrasch: 3...Nf6 4 e5 Nfd7, 5 f4 and 5 Bd3 sidelines} f6 {[%emt 0:02:30]} 11. Kg2 {[%emt 0:00:30]} Qe7 $146 {[%emt 0:05:30]} ({Predecessor:} 11... a6 12. Bd3 b5 13. Ne2 f5 14. Rg1 Kh8 15. Kh1 Nb6 {1-0 (60) Budnikov,O (2422)-Larkin,V (2112) Lutsk 2018}) 12. a3 {[%emt 0:00:30]} Ba5 {[%emt 0:00:30]} 13. Bd3 {[%emt 0:02:30]} Rd8 {[%emt 0:09:30]} 14. h4 {[%emt 0:26:30]} f5 {[%emt 0:09:30]} 15. h5 {[%emt 0:01:30]} h6 {[%emt 0:02:30]} 16. Be3 {[%emt 0:02:30]} Nf8 $16 {[%emt 0:01:30]} 17. Nh3 {[%emt 0:12:30]} Bd7 {[%emt 0:06:30]} 18. Nf2 {[%emt 0:00:30]} Rac8 {[%emt 0:07:30]} 19. Qe2 {[%emt 0:00:30]} Qf7 {[%emt 0:07:30]} 20. Rag1 {[%emt 0:04:30]} Ne7 {[%emt 0:04:30]} 21. Rh2 {[%emt 0:00:30]} Rc7 {[%emt 0:01:30]} 22. Kh1 {[%emt 0:00:30]} Be8 {[%emt 0:01:30]} 23. g4 {[%emt 0:13:30]} fxg4 {[%emt 0:01:30]} 24. Nxg4 {[%emt 0:00:30]} Kh8 {[%emt 0:00:30]} 25. Ng5 {[%emt 0:13:19]} hxg5 {[%emt 0:05:30]} 26. fxg5 {[%emt 0:00:09]} Nf5 {[%emt 0:02:30]} 27. g6 {[%emt 0:00:28]} Qe7 {[%emt 0:06:33]} 28. h6 {[%emt 0:00:15]} 1-0

[Event "World Junior U20 Open 2018"]
[Site "Gebze"]
[Date "2018.09.06"]
[Round "2.80"]
[White "Akdogan, Alperen"]
[Black "Akin, Kadir"]
[Result "0-1"]
[ECO "E05"]
[WhiteElo "2278"]
[BlackElo "1974"]
[Annotator "ChessBase"]
[PlyCount "86"]
[EventDate "2018.09.05"]
[EventType "swiss"]
[EventCountry "TUR"]
[SourceTitle "playchess.com"]
[Source "ChessBase"]
[SourceQuality "1"]
[TimeControl "40/5400+30:1800+30"]

1. d4 {[%emt 0:00:30]} d5 {[%emt 0:00:30]} 2. Nf3 {[%emt 0:00:30]} Nf6 {[%emt 0:00:30]} 3. c4 {[%emt 0:00:30]} e6 {[%emt 0:00:30]} 4. g3 {[%emt 0:00:00]} Be7 {[%emt 0:00:00]} 5. Bg2 {[%emt 0:00:00]} O-O {[%emt 0:00:00]} 6. O-O {[%emt 0:00:30]} dxc4 {[%emt 0:00:00]} 7. Qc2 {[%emt 0:00:00]} a6 {[%emt 0:00:00]} 8. a4 {[%emt 0:00:00]} Bd7 {[%emt 0:00:00]} 9. Rd1 {[%emt 0:00:30]} Bc6 {[%emt 0:00:00]} 10. Nc3 {[%emt 0:00:30]} Bxf3 {[%emt 0:00:00]} 11. Bxf3 {[%emt 0:00:30]} Nc6 {[%emt 0:00:00]} 12. Bxc6 {[%emt 0:00:30]} bxc6 {[%emt 0:00:00]} 13. a5 {[%emt 0:00:30]} Rb8 {[%emt 0:00:00]} 14. e4 {[%emt 0:04:30]} Rb3 {[%emt 0:00:00]} 15. Ra4 {[%emt 0:37:30]} Rb4 {[%emt 0:00:00]} 16. Ra2 {[%emt 0:00:00]} Qb8 {[%emt 0:00:30]} 17. Be3 {[%emt 0:06:00]} Qb7 {[%emt 0:05:30]} 18. Qe2 {[%emt 0:06:30]} Rd8 {[%emt 0:02:30]} 19. f3 {[%emt 0:01:30]} h6 {[%emt 0:01:30]} 20. Rd2 {[%emt 0:00:30]} Rb8 {[%emt 0:25:30]} 21. Kg2 {[%emt 0:01:30]} Nd7 {[%emt 0:02:30]} 22. e5 {[%emt 0:14:30]} c5 {[%emt 0:08:30]} 23. d5 {[%emt 0:11:22]} Nxe5 {[%emt 0:00:00]} 24. dxe6 {[%emt 0:04:17]} Nd3 {[%emt 0:01:00]} 25. exf7+ {[%emt 0:00:04]} Kxf7 {[%emt 0:00:30]} 26. Ne4 {[%emt 0:03:27]} Qb5 {[%emt 0:01:30]} 27. Rc2 {[%emt 0:05:26]} Rb3 {[%emt 0:05:30]} 28. Nd2 {[%emt 0:01:49]} Nb4 {[%emt 0:04:30]} 29. Nxc4 {[%emt 0:00:57]} Nxa2 {[%emt 0:00:00]} 30. Bf4 {[%emt 0:00:02]} Bf6 {[%emt 0:01:00]} 31. Bxc7 {[%emt 0:00:22]} Re8 {[%emt 0:06:30]} 32. Nd6+ {[%emt 0:00:30]} Kf8 {[%emt 0:00:00]} 33. Nxe8 {[%emt 0:00:00]} Qxe8 {[%emt 0:02:00]} 34. Qc4 {[%emt 0:01:06]} Qf7 {[%emt 0:03:30]} 35. Qxc5+ {[%emt 0:00:31]} Kg8 {[%emt 0:02:30]} 36. Bf4 {[%emt 0:00:34]} Nb4 {[%emt 0:00:30]} 37. Qc8+ {[%emt 0:00:16]} Kh7 {[%emt 0:00:30]} 38. Qc5 {[%emt 0:00:44]} Nxc2 {[%emt 0:00:30]} 39. Qxc2+ {[%emt 0:00:30]} g6 {[%emt 0:00:00]} 40. Qc6 {[%emt 0:00:25]} Rxb2+ {[%emt 0:00:00]} 41. Kh3 {[%emt 0:00:08]} Be7 {[%emt 0:00:30]} 42. Qc7 {[%emt 0:01:30]} Re2 {[%emt 0:00:30]} 43. Qb8 {[%emt 0:02:30]} Bg5 {[%emt 0:00:30]} 0-1

[Event "World Junior U20 Open 2018"]
[Site "Gebze"]
[Date "2018.09.06"]
[Round "2.81"]
[White "Beukema, Christiaan"]
[Black "Yaran, Siar"]
[Result "0-1"]
[ECO "B01"]
[WhiteElo "1904"]
[BlackElo "2271"]
[Annotator "NA"]
[PlyCount "122"]
[EventDate "2018.09.05"]
[EventType "swiss"]
[EventCountry "TUR"]
[SourceTitle "playchess.com"]
[Source "ChessBase"]
[SourceQuality "1"]
[TimeControl "40/5400+30:1800+30"]

1. e4 {[%emt 0:00:30]} d5 {[%emt 0:00:30]} 2. exd5 {[%emt 0:00:30]} Qxd5 {[%emt 0:00:30]} 3. Nc3 {[%emt 0:00:30]} Qd8 {[%emt 0:00:00]} 4. d4 {[%emt 0:00:30]} Nf6 {[%emt 0:00:00]} 5. Nf3 {[%emt 0:00:00]} Bg4 {[%emt 0:03:30]} 6. Be2 {[%emt 0:02:00]} e6 {[%emt 0:00:30]} 7. O-O {[%emt 0:00:30] LiveBook: 6 Games} c6 {[%emt 0:01:30] B01: Scandinavian Defence} 8. Bg5 {[%emt 0:02:30]} (8. h3 Bxf3 9. Bxf3 {½-½ (9) Andreev,E (2417)-Usmanov,V (2467) St Petersburg 2017}) 8... Be7 {[%emt 0:00:30]} 9. h3 {[%emt 0:00:30]} Bxf3 {[%emt 0:00:30]} 10. Bxf3 {[%emt 0:00:30]} O-O $146 {[%emt 0:00:00]} ({Predecessor:} 10... Nbd7 11. Re1 O-O 12. Qd2 Nb6 13. Rad1 Nbd5 {0-1 (32) De la Riva Fernandez,E-Sebastian Lorente,P (2150) San Jose 1997}) 11. Ne2 {[%emt 0:02:30]} Nbd7 {[%emt 0:00:00]} 12. c3 {[%emt 0:01:30]} Qc7 {[%emt 0:01:30]} 13. Bf4 {[%emt 0:00:30]} Bd6 {[%emt 0:00:30]} 14. Bxd6 {[%emt 0:00:30]} Qxd6 {[%emt 0:00:30]} 15. Qb3 {[%emt 0:00:30]} Qc7 {[%emt 0:00:30]} 16. Ng3 {[%emt 0:00:30]} Rfe8 {[%emt 0:00:30]} 17. Rfe1 {[%emt 0:08:30]} g6 {[%emt 0:05:30]} 18. Rad1 {[%emt 0:02:30]} Re7 {[%emt 0:01:30]} 19. Re2 {[%emt 0:02:30]} Rae8 {[%emt 0:00:30]} 20. Rde1 {[%emt 0:00:30]} Kg7 {[%emt 0:11:30]} 21. a4 {[%emt 0:04:30]} e5 {[%emt 0:24:30]} 22. d5 {[%emt 0:02:30]} cxd5 {[%emt 0:04:30]} 23. Bxd5 {[%emt 0:00:30]} Nc5 {[%emt 0:00:30]} 24. Qa2 {[%emt 0:03:30]} Nxd5 {[%emt 0:01:30]} 25. Qxd5 {[%emt 0:00:00]} Nxa4 {[%emt 0:00:30]} 26. Ra1 {[%emt 0:02:00]} Nb6 {[%emt 0:00:30]} 27. Qd2 {[%emt 0:00:30]} f6 {[%emt 0:19:30]} 28. Rxa7 {[%emt 0:01:30]} e4 {[%emt 0:01:30]} 29. Nf1 {[%emt 0:04:30]} Nc4 {[%emt 0:01:30]} 30. Qc2 {[%emt 0:01:30]} e3 {[%emt 0:02:29]} 31. fxe3 {[%emt 0:02:30]} Nxe3 {[%emt 0:02:20]} 32. Nxe3 {[%emt 0:02:30]} Rxe3 {[%emt 0:00:43]} 33. Rxe3 {[%emt 0:00:30]} Rxe3 {[%emt 0:00:08]} 34. Qf2 {[%emt 0:01:30]} Rd3 {[%emt 0:04:08]} 35. Ra1 {[%emt 0:00:30]} Qd6 {[%emt 0:00:39]} 36. Qa7 {[%emt 0:02:30]} Qd5 {[%emt 0:01:14]} 37. Rf1 {[%emt 0:07:30]} Rd2 {[%emt 0:00:34]} 38. Rf2 {[%emt 0:00:30]} Rd1+ {[%emt 0:00:05]} 39. Kh2 {[%emt 0:01:30]} Qe5+ {[%emt 0:04:46]} 40. g3 {[%emt 0:00:00]} Qe4 {[%emt 0:00:00]} 41. Rg2 {[%emt 0:02:00]} Qe1 {[%emt 0:11:54]} 42. Qg1 {[%emt 0:02:30]} Qxg1+ {[%emt 0:00:30]} 43. Rxg1 {[%emt 0:00:30]} Rd3 {[%emt 0:00:00]} 44. Rg2 {[%emt 0:00:30]} f5 {[%emt 0:00:00]} 45. Re2 {[%emt 0:00:30]} Kf6 {[%emt 0:00:30]} 46. Kg2 {[%emt 0:01:30]} g5 {[%emt 0:00:30]} 47. Kf2 {[%emt 0:01:30]} h5 {[%emt 0:11:23]} 48. Re3 {[%emt 0:05:30]} Rd8 {[%emt 0:02:35]} 49. Ke2 {[%emt 0:00:30]} g4 {[%emt 0:00:42]} 50. h4 {[%emt 0:03:30]} f4 {[%emt 0:01:33]} 51. gxf4 {[%emt 0:02:30]} Kf5 {[%emt 0:00:02]} 52. Re5+ {[%emt 0:01:30]} Kxf4 {[%emt 0:00:05]} 53. Rxh5 {[%emt 0:00:30]} Rd7 {[%emt 0:03:19]} 54. Rh8 {[%emt 0:02:30]} Kg3 $15 {[%emt 0:00:05]} 55. h5 {[%emt 0:00:30]} Kh2 {[%emt 0:00:30]} 56. Rf8 {[%emt 0:11:30]} g3 {[%emt 0:05:33]} 57. Kf3 {[%emt 0:00:30]} g2 {[%emt 0:00:30]} 58. Rf4 {[%emt 0:00:30]} Kh3 {[%emt 0:00:30]} 59. Kf2 {[%emt 0:00:30]} Rd2+ {[%emt 0:00:30]} 60. Ke3 {[%emt 0:00:30]} g1=Q+ {[%emt 0:00:30]} 61. Kxd2 {[%emt 0:00:30]} Qg5 {[%emt 0:00:30]} 0-1